fUST/lending_fUST_20240216
["ID","MTS","AMOUNT","RATE_DAILY","PERIOD"]
[314173399,1708043440511,-500.0,0.00021917,2]
[314173400,1708043440522,-500.0,0.00021917,2]
[314173401,1708043440532,-500.0,0.00021917,2]
[314173402,1708043440542,-3066.25,0.00021917,2]
[314173403,1708043440552,-544.3,0.00021917,2]
[314173404,1708043440561,-470.3612371,0.00021917,2]
[314173405,1708043440571,-7803.05,0.00021917,2]
[314173406,1708043440581,-502.66022835,0.00021917,2]
[314173407,1708043440591,-500.0,0.00021917,2]
[314173408,1708043440601,-500.0,0.00021917,2]
[314173409,1708043440611,-500.0,0.00021917,2]
[314173410,1708043440620,-500.0,0.00021917,2]
[314173411,1708043440629,-500.0,0.00021917,2]
[314173412,1708043440638,-500.0,0.00021917,2]
[314173413,1708043440647,-9268.25,0.00021917,2]
[314173414,1708043440657,-519.17079685,0.00021917,2]
[314173415,1708043440666,-500.0,0.00021917,2]
[314173416,1708043440675,-500.0,0.00021917,2]
[314173417,1708043440685,-604.93952717,0.00021917,2]
[314173418,1708043440694,-535.87278273,0.00021917,2]
[314173419,1708043440704,-509.93,0.00021917,2]
[314173420,1708043440713,-1031.17,0.00021917,2]
[314173421,1708043440722,-3312.16,0.00021917,2]
[314173422,1708043440731,-158.51638676,0.00021917,2]
[314173423,1708043440741,-502.92808677,0.00021917,2]
[314173424,1708043440751,-426.08,0.00021917,2]
[314173425,1708043440761,-502.00753145,0.00021917,2]
[314173426,1708043440770,-3246.74,0.00021917,2]
[314173427,1708043440843,-511.04327284,0.00021917,2]
[314173428,1708043440853,-500.0,0.00021917,2]
[314173429,1708043440863,-583.6952767,0.00021917,2]
[314173430,1708043440872,-503.69014299,0.00021917,2]
[314173431,1708043440882,-500.0,0.00021917,2]
[314173432,1708043440891,-1805.41,0.00021917,2]
[314173433,1708043440902,-1613.83,0.00021917,2]
[314173434,1708043440912,-500.0,0.00021917,2]
[314173435,1708043440922,-500.0,0.00021917,2]
[314173436,1708043440932,-168.47470284,0.00021917,2]
[314173437,1708043440942,-2598.57,0.00021917,2]
[314173438,1708043440952,-500.0,0.00021917,2]
[314173439,1708043440963,-500.0,0.00021917,2]
[314173440,1708043440972,-208.6232261,0.00021917,2]
[314173441,1708043440983,-500.0,0.00021917,2]
[314173442,1708043440994,-500.0,0.00021917,2]
[314173443,1708043441005,-1842.61,0.00021917,2]
[314173444,1708043441017,-500.0,0.00021917,2]
[314173446,1708043441026,-500.0,0.00021917,2]
[314173447,1708043441036,-500.0,0.00021917,2]
[314173448,1708043441045,-500.0,0.00021917,2]
[314173449,1708043441054,-500.0,0.00021917,2]
[314173450,1708043441063,-1000.0,0.00021917,2]
[314173451,1708043441073,-500.0,0.00021917,2]
[314173452,1708043441082,-500.0,0.00021917,2]
[314173453,1708043441091,-2457.25,0.00021917,2]
[314173454,1708043441101,-500.0,0.00021917,2]
[314173455,1708043441111,-500.0,0.00021917,2]
[314173456,1708043441120,-1267.88,0.00021917,2]
[314173457,1708043441129,-500.0,0.00021917,2]
[314173458,1708043441139,-500.0,0.00021917,2]
[314173459,1708043441148,-520.94030356,0.00021917,2]
[314173460,1708043441157,-500.0,0.00021917,2]
[314173461,1708043441166,-6744.19,0.00021917,2]
[314173462,1708043441175,-375.44487099,0.00021917,2]
[314173463,1708043441185,-547.39344744,0.00021917,2]
[314173464,1708043441195,-500.0,0.00021917,2]
[314173465,1708043441205,-2838.02,0.00021917,2]
[314173466,1708043441214,-500.0,0.00021917,2]
[314173467,1708043441224,-1179.09,0.00021917,2]
[314173468,1708043441233,-509.43438541,0.00021917,2]
[314173469,1708043441243,-500.0,0.00021917,2]
[314173470,1708043441253,-765.96,0.00021917,2]
[314173471,1708043441266,-15049.85,0.00021917,2]
[314173472,1708043441277,-1207.54,0.00021917,2]
[314173473,1708043441288,-500.0,0.00021917,2]
[314173474,1708043441297,-500.0,0.00021917,2]
[314173475,1708043441307,-543.30693965,0.00021917,2]
[314173476,1708043441317,-806.72,0.00021917,2]
[314173477,1708043441327,-500.0,0.00021917,2]
[314173478,1708043441338,-500.0,0.00021917,2]
[314173479,1708043441347,-500.0,0.00021917,2]
[314173480,1708043441358,-500.0,0.00021917,2]
[314173481,1708043441368,-500.0,0.00021917,2]
[314173482,1708043441378,-2485.29,0.00021917,2]
[314173483,1708043441387,-14273.82,0.00021917,2]
[314173484,1708043441396,-500.0,0.00021917,2]
[314173485,1708043441408,-611.66329015,0.00021917,2]
[314173486,1708043441417,-13301.26,0.00021917,2]
[314173487,1708043441426,-500.0,0.00021917,2]
[314173488,1708043441437,-500.0,0.00021917,2]
[314173489,1708043441447,-500.0,0.00021917,2]
[314173490,1708043441456,-500.0,0.00021917,2]
[314173491,1708043441465,-500.0,0.00021917,2]
[314173492,1708043441475,-500.0,0.00021917,2]
[314173493,1708043441484,-500.0,0.00021917,2]
[314173494,1708043441493,-500.0,0.00021917,2]
[314173495,1708043441503,-500.0,0.00021917,2]
[314173496,1708043441514,-500.0,0.00021917,2]
[314173497,1708043441524,-536.17297969,0.00021917,2]
[314173498,1708043441533,-500.0,0.00021917,2]
[314173499,1708043441542,-500.0,0.00021917,2]
[314173500,1708043441552,-5635.35,0.00021917,2]
[314173501,1708043441562,-505.73434112,0.00021917,2]
[314173502,1708043441571,-500.0,0.00021917,2]
[314173503,1708043441581,-500.0,0.00021917,2]
[314173504,1708043441590,-500.0,0.00021917,2]
[314173505,1708043441599,-2100.89,0.00021917,2]
[314173506,1708043441608,-500.0,0.00021917,2]
[314173507,1708043441617,-796.71,0.00021917,2]
[314173508,1708043441627,-796.71,0.00021917,2]
[314173509,1708043441636,-500.0,0.00021917,2]
[314173510,1708043441645,-796.71,0.00021917,2]
[314173511,1708043441654,-796.71,0.00021917,2]
[314173512,1708043441663,-500.0,0.00021917,2]
[314173513,1708043441672,-796.71,0.00021917,2]
[314173514,1708043441681,-796.71,0.00021917,2]
[314173515,1708043441690,-796.71,0.00021917,2]
[314173516,1708043441699,-796.71,0.00021917,2]
[314173517,1708043441708,-796.71,0.00021917,2]
[314173518,1708043441717,-796.71,0.00021917,2]
[314173519,1708043441726,-796.71,0.00021917,2]
[314173520,1708043441735,-796.71,0.00021917,2]
[314173521,1708043441744,-796.71,0.00021917,2]
[314173522,1708043441753,-796.71,0.00021917,2]
[314173523,1708043441764,-796.71,0.00021917,2]
[314173524,1708043441773,-796.71,0.00021917,2]
[314173525,1708043441782,-311.37712662,0.00021917,2]
[314173526,1708043441791,-500.0,0.00021917,2]
[314173527,1708043441800,-620.72343672,0.00021917,2]
[314173528,1708043441809,-779.41,0.00021917,2]
[314173529,1708043441818,-500.0,0.00021917,2]
[314173530,1708043441827,-510.29042378,0.00021917,2]
[314173531,1708043441837,-500.0,0.00021917,2]
[314173532,1708043441846,-500.0,0.00021917,2]
[314173533,1708043441855,-502.24307107,0.00021917,2]
[314173534,1708043441864,-21401.06,0.00021917,2]
[314173535,1708043441873,-500.0,0.00021917,2]
[314173536,1708043441883,-501.20731694,0.00021917,2]
[314173537,1708043441892,-500.0,0.00021917,2]
[314173538,1708043441901,-500.0,0.00021917,2]
[314173539,1708043441911,-1000.0,0.00021988,2]
[314173540,1708043441920,-1000.0,0.00022125,2]
[314173541,1708043441930,-796.71,0.00022185,2]
[314173542,1708043441939,-5000.0,0.00022186,2]
[314173543,1708043441949,-26441.30281155,0.00022186,2]
[314173544,1708043441959,-18085.37805039,0.00022186,2]
[314173545,1708043441968,-3164.94115881,0.00022186,2]
[314173546,1708043441978,-5000.0,0.00022186,2]
[314173547,1708043441988,-5000.0,0.00022186,2]
[314173548,1708043441997,-500.0,0.0002219,2]
[314173549,1708043442067,-451.98183274,0.0002219,2]
[314173550,1708043442077,-500.0,0.0002219,2]
[314173551,1708043442087,-197.33585836,0.0002219,2]
[314173552,1708043442096,-500.0,0.0002219,2]
[314173553,1708043442105,-499.96128475,0.0002219,2]
[314173554,1708043442115,-447.90635251,0.0002219,2]
[314173555,1708043442125,-500.0,0.0002219,2]
[314173556,1708043442134,-500.0,0.0002219,2]
[314173557,1708043442143,-583.25507072,0.0002219,2]
[314173558,1708043442153,-500.0,0.0002219,2]
[314173559,1708043442163,-500.0,0.0002219,2]
[314173560,1708043442173,-500.0,0.0002219,2]
[314173562,1708043442182,-500.0,0.0002219,2]
[314173564,1708043442191,-500.0,0.0002219,2]
[314173565,1708043442200,-500.0,0.0002219,2]
[314173566,1708043442209,-500.0,0.0002219,2]
[314173567,1708043442222,-327.75875897,0.0002219,2]
[314173568,1708043442232,-500.0,0.0002219,2]
[314173570,1708043442242,-500.0,0.0002219,2]
[314173571,1708043442252,-500.0,0.0002219,2]
[314173572,1708043442263,-500.0,0.0002219,2]
[314173573,1708043442278,-500.0,0.0002219,2]
[314173574,1708043442287,-500.0,0.0002219,2]
[314173575,1708043442296,-500.0,0.0002219,2]
[314173576,1708043442305,-500.0,0.0002219,2]
[314173577,1708043442316,-450.0,0.0002219,2]
[314173578,1708043442325,-500.0,0.0002219,2]
[314173579,1708043442334,-545.11482252,0.0002219,2]
[314173580,1708043442350,-500.0,0.0002219,2]
[314173581,1708043442366,-500.0,0.0002219,2]
[314173582,1708043442376,-500.0,0.0002219,2]
[314173583,1708043442386,-796.71,0.0002219,2]
[314173584,1708043442396,-796.71,0.0002219,2]
[314173585,1708043442406,-796.71,0.0002219,2]
[314173586,1708043442416,-796.71,0.0002219,2]
[314173587,1708043442426,-796.71,0.0002219,2]
[314173588,1708043442437,-796.71,0.0002219,2]
[314173589,1708043442446,-796.80003378,0.0002219,2]
[314173590,1708043442456,-580.37169468,0.00022191,2]
[314173591,1708043442466,-500.0,0.00022191,2]
[314173592,1708043442475,-500.0,0.00022191,2]
[314173593,1708043442485,-500.0,0.00022191,2]
[314173594,1708043442495,-1008.71,0.00022191,2]
[314173595,1708043442504,-500.0,0.00022191,2]
[314173596,1708043442514,-500.0,0.00022191,2]
[314173597,1708043442524,-500.0,0.00022191,2]
[314173598,1708043442534,-500.0,0.00022191,2]
[314173599,1708043442544,-358.86505911,0.00022191,2]
[314173600,1708043442554,-500.0,0.00022191,2]
[314173601,1708043442563,-612.86092287,0.00022191,2]
[314173602,1708043442573,-500.0,0.00022191,2]
[314173603,1708043442583,-500.0,0.00022191,2]
[314173604,1708043442593,-971.2,0.00022191,2]
[314173605,1708043442603,-500.0,0.00022191,2]
[314173606,1708043442613,-3179.39,0.00022191,2]
[314173607,1708043442623,-1692.75,0.00022191,2]
[314173608,1708043442640,-1607.13,0.00022191,2]
[314173609,1708043442662,-2711.62,0.00022191,2]
[314173610,1708043442679,-500.0,0.00022191,2]
[314173611,1708043442695,-500.0,0.00022191,2]
[314173612,1708043442711,-589.57474798,0.00022191,2]
[314173613,1708043442729,-513.49465478,0.00022191,2]
[314173614,1708043442746,-500.0,0.00022191,2]
[314173615,1708043442760,-500.0,0.00022191,2]
[314173616,1708043442774,-500.0,0.00022191,2]
[314173617,1708043442790,-500.0,0.00022191,2]
[314173618,1708043442806,-500.0,0.00022191,2]
[314173619,1708043442818,-500.0,0.00022191,2]
[314173620,1708043442835,-500.0,0.00022191,2]
[314173621,1708043442852,-1658.3,0.00022191,2]
[314173622,1708043442867,-728.5,0.00022191,2]
[314173623,1708043442883,-500.0,0.00022191,2]
[314173624,1708043442899,-500.0,0.00022191,2]
[314173625,1708043442916,-622.63376285,0.00022191,2]
[314173626,1708043442931,-544.4013891,0.00022191,2]
[314173627,1708043442943,-500.0,0.00022191,2]
[314173628,1708043442954,-500.0,0.00022191,2]
[314173629,1708043442969,-500.0,0.00022191,2]
[314173630,1708043442985,-500.0,0.00022191,2]
[314173631,1708043442999,-500.0,0.00022191,2]
[314173632,1708043443011,-790.7,0.00022191,2]
[314173633,1708043443024,-500.0,0.00022191,2]
[314173634,1708043443039,-607.71,0.00022191,2]
[314173635,1708043443053,-500.0,0.00022191,2]
[314173636,1708043443066,-503.66058879,0.00022191,2]
[314173637,1708043443079,-1000.0,0.00022191,5]
[314173638,1708043443092,-500.0,0.00022191,2]
[314173639,1708043443105,-500.0,0.00022191,2]
[314173640,1708043443118,-415.01598404,0.00022191,2]
[314173641,1708043443131,-500.0,0.00022191,2]
[314173642,1708043443145,-631.63,0.00022191,2]
[314173643,1708043443157,-531.7811792,0.00022191,2]
[314173644,1708043443169,-500.0,0.00022191,2]
[314173645,1708043443181,-1568.5,0.00022191,2]
[314173646,1708043443194,-511.07894119,0.00022191,2]
[314173647,1708043443206,-500.0,0.00022191,2]
[314173648,1708043443219,-500.0,0.00022191,2]
[314173649,1708043443231,-510.52661764,0.00022191,2]
[314173650,1708043443243,-796.8,0.00022191,2]
[314173651,1708043443256,-554.07303476,0.00022191,2]
[314173652,1708043443271,-500.0,0.00022191,2]
[314173653,1708043443286,-500.0,0.00022191,2]
[314173654,1708043443299,-500.0,0.00022191,2]
[314173655,1708043443311,-500.0,0.00022191,2]
[314173656,1708043443324,-565.12591649,0.00022191,2]
[314173657,1708043443337,-500.0,0.00022191,2]
[314173658,1708043443349,-500.0,0.00022191,2]
[314173659,1708043443362,-500.0,0.00022191,2]
[314173660,1708043443374,-601.37,0.00022191,2]
[314173661,1708043443387,-500.0,0.00022191,2]
[314173662,1708043443397,-550.27637508,0.00022191,2]
[314173663,1708043443498,-557.04962915,0.00022191,2]
[314173664,1708043443514,-500.0,0.00022191,2]
[314173665,1708043443523,-598.2,0.00022191,2]
[314173666,1708043443532,-500.0,0.00022191,2]
[314173667,1708043443541,-500.0,0.00022191,2]
[314173668,1708043443550,-500.0,0.00022191,2]
[314173669,1708043443559,-500.0,0.00022191,2]
[314173670,1708043443569,-893.41,0.00022191,2]
[314173671,1708043443578,-557.05,0.00022191,2]
[314173672,1708043443587,-500.0,0.00022191,2]
[314173673,1708043443596,-720.7,0.00022191,2]
[314173674,1708043443604,-580.83,0.00022191,2]
[314173675,1708043443613,-500.0,0.00022191,2]
[314173676,1708043443622,-500.0,0.00022191,2]
[314173677,1708043443631,-500.0,0.00022191,2]
[314173678,1708043443640,-500.0,0.00022191,2]
[314173679,1708043443649,-500.0,0.00022191,2]
[314173680,1708043443658,-500.0,0.00022191,2]
[314173681,1708043443667,-430.24803241,0.00022191,2]
[314173682,1708043443676,-500.0,0.00022191,2]
[314173683,1708043443685,-500.0,0.00022191,2]
[314173684,1708043443694,-500.0,0.00022191,2]
[314173685,1708043443704,-403.79557639,0.00022191,2]
[314173686,1708043443713,-500.0,0.00022191,2]
[314173687,1708043443722,-500.0,0.00022191,2]
[314173688,1708043443731,-500.0,0.00022191,2]
[314173689,1708043443739,-3066.25,0.00022191,2]
[314173690,1708043443749,-544.3,0.00022191,2]
[314173691,1708043443758,-7803.05,0.00022191,2]
[314173692,1708043443768,-500.0,0.00022191,2]
[314173693,1708043443777,-500.0,0.00022191,2]
[314173694,1708043443786,-500.0,0.00022191,2]
[314173695,1708043443796,-518.16020758,0.00022191,2]
[314173696,1708043443805,-530.57541768,0.00022191,2]
[314173697,1708043443814,-212.18676146,0.00022191,2]
[314173698,1708043443823,-9268.25,0.00022191,2]
[314173699,1708043443832,-500.0,0.00022191,2]
[314173700,1708043443841,-509.93,0.00022191,2]
[314173701,1708043443851,-1031.17,0.00022191,2]
[314173702,1708043443862,-3312.16,0.00022191,2]
[314173703,1708043443871,-3246.74,0.00022191,2]
[314173704,1708043443880,-500.0,0.00022191,2]
[314173705,1708043443889,-502.53956151,0.00022191,2]
[314173706,1708043443898,-1805.41,0.00022191,2]
[314173707,1708043443908,-1613.83,0.00022191,2]
[314173708,1708043443917,-500.0,0.00022191,2]
[314173709,1708043443926,-500.0,0.00022191,2]
[314173710,1708043443935,-2598.57,0.00022191,2]
[314173711,1708043443944,-500.0,0.00022191,2]
[314173712,1708043443953,-500.0,0.00022191,2]
[314173713,1708043443962,-500.0,0.00022191,2]
[314173714,1708043443971,-500.0,0.00022191,2]
[314173715,1708043443984,-1842.61,0.00022191,2]
[314173716,1708043443993,-500.0,0.00022191,2]
[314173717,1708043444002,-582.01731099,0.00022191,2]
[314173718,1708043444012,-500.0,0.00022191,2]
[314173719,1708043444021,-500.0,0.00022191,2]
[314173720,1708043444031,-503.08737769,0.00022191,2]
[314173721,1708043444041,-1000.0,0.00022191,2]
[314173722,1708043444050,-500.0,0.00022191,2]
[314173723,1708043444059,-500.0,0.00022191,2]
[314173724,1708043444068,-2457.25,0.00022191,2]
[314173725,1708043444077,-500.0,0.00022191,2]
[314173726,1708043444087,-500.0,0.00022191,2]
[314173727,1708043444096,-1267.88,0.00022191,2]
[314173728,1708043444105,-500.0,0.00022191,2]
[314173729,1708043444114,-500.0,0.00022191,2]
[314173730,1708043444123,-6744.19,0.00022191,2]
[314173731,1708043444132,-500.0,0.00022191,2]
[314173732,1708043444142,-2838.02,0.00022191,2]
[314173734,1708043444151,-500.0,0.00022191,2]
[314173735,1708043444160,-1179.09,0.00022191,2]
[314173736,1708043444169,-765.96,0.00022191,2]
[314173737,1708043444178,-15049.85,0.00022191,2]
[314173738,1708043444188,-1207.54,0.00022191,2]
[314173739,1708043444197,-500.0,0.00022191,2]
[314173740,1708043444207,-806.72,0.00022191,2]
[314173741,1708043444216,-500.0,0.00022191,2]
[314173742,1708043444225,-500.0,0.00022191,2]
[314173743,1708043444234,-500.0,0.00022191,2]
[314173744,1708043444243,-2485.29,0.00022191,2]
[314173745,1708043444252,-14273.82,0.00022191,2]
[314173746,1708043444262,-500.92600228,0.00022191,2]
[314173747,1708043444272,-13301.26,0.00022191,2]
[314173748,1708043444284,-500.0,0.00022191,2]
[314173749,1708043444294,-500.0,0.00022191,2]
[314173750,1708043444303,-5635.35,0.00022191,2]
[314173751,1708043444313,-500.0,0.00022191,2]
[314173752,1708043444322,-511.87142877,0.00022191,2]
[314173753,1708043444331,-2100.89,0.00022191,2]
[314173754,1708043444341,-502.91675101,0.00022191,2]
[314173755,1708043444351,-779.41,0.00022191,2]
[314173756,1708043444360,-500.0,0.00022191,2]
[314173757,1708043444369,-510.99279299,0.00022191,2]
[314173758,1708043444378,-500.0,0.00022191,2]
[314173760,1708043444387,-21401.06,0.00022191,2]
[314173761,1708043444396,-500.0,0.00022191,2]
[314173762,1708043444405,-500.0,0.00022191,2]
[314173763,1708043444414,-1000.0,0.00022262,2]
[314173764,1708043444423,-300.0,0.00022351,2]
[314173765,1708043444433,-1000.0,0.00022399,2]
[314173766,1708043444442,-500.0,0.00022465,2]
[314173767,1708043444451,-500.0,0.00022465,2]
[314173768,1708043444460,-1008.71,0.00022465,2]
[314173769,1708043444470,-597.84023294,0.00022465,2]
[314173770,1708043444479,-500.0,0.00022465,2]
[314173771,1708043444489,-500.0,0.00022465,2]
[314173772,1708043444498,-500.0,0.00022465,2]
[314173773,1708043444507,-500.0,0.00022465,2]
[314173774,1708043444519,-500.0,0.00022465,2]
[314173775,1708043444528,-971.2,0.00022465,2]
[314173776,1708043444537,-180.1604717,0.00022465,2]
[314173777,1708043444547,-3179.39,0.00022465,2]
[314173778,1708043444556,-1692.75,0.00022465,2]
[314173780,1708043444564,-1607.13,0.00022465,2]
[314173782,1708043444574,-2711.62,0.00022465,2]
[314173784,1708043444583,-500.0,0.00022465,2]
[314173785,1708043444592,-500.0,0.00022465,2]
[314173786,1708043444601,-500.0,0.00022465,2]
[314173787,1708043444610,-500.0,0.00022465,2]
[314173788,1708043444619,-305.77710276,0.00022465,2]
[314173789,1708043444628,-1658.3,0.00022465,2]
[314173790,1708043444637,-728.5,0.00022465,2]
[314173791,1708043444646,-543.56299261,0.00022465,2]
[314173792,1708043444656,-500.0,0.00022465,2]
[314173793,1708043444665,-790.7,0.00022465,2]
[314173794,1708043444674,-337.65853467,0.00022465,2]
[314173795,1708043444683,-607.71,0.00022465,2]
[314173796,1708043444692,-500.0,0.00022465,2]
[314173797,1708043444701,-631.63,0.00022465,2]
[314173798,1708043444710,-1568.5,0.00022465,2]
[314173799,1708043444719,-500.0,0.00022465,2]
[314173800,1708043444728,-796.8,0.00022465,2]
[314173801,1708043444737,-521.9118982,0.00022465,2]
[314173802,1708043444746,-509.63478831,0.00022465,2]
[314173803,1708043444755,-500.0,0.00022465,2]
[314173804,1708043444765,-162.27036822,0.00022465,2]
[314173805,1708043444774,-601.37,0.00022465,2]
[314173806,1708043444783,-500.0,0.00022465,2]
[314173807,1708043444793,-598.2,0.00022465,2]
[314173808,1708043444802,-500.0,0.00022465,2]
[314173809,1708043444811,-500.0,0.00022465,2]
[314173810,1708043444821,-893.41,0.00022465,2]
[314173811,1708043444831,-557.05,0.00022465,2]
[314173812,1708043444841,-720.7,0.00022465,2]
[314173813,1708043444850,-580.83,0.00022465,2]
[314173814,1708043444860,-500.0,0.00022465,2]
[314173815,1708043444870,-500.0,0.00022465,2]
[314173816,1708043444879,-500.0,0.00022465,2]
[314173817,1708043444889,-500.0,0.00022465,2]
[314173818,1708043444898,-3066.25,0.00022465,2]
[314173819,1708043444908,-544.3,0.00022465,2]
[314173820,1708043444917,-7803.05,0.00022465,2]
[314173821,1708043444928,-350.17173774,0.00022465,2]
[314173822,1708043444937,-9268.25,0.00022465,2]
[314173823,1708043444946,-500.0,0.00022465,2]
[314173824,1708043444955,-509.93,0.00022465,2]
[314173825,1708043444964,-1031.17,0.00022465,2]
[314173826,1708043444974,-3312.16,0.00022465,2]
[314173827,1708043444983,-3246.74,0.00022465,2]
[314173828,1708043444992,-500.0,0.00022465,2]
[314173829,1708043445002,-1805.41,0.00022465,2]
[314173830,1708043445011,-1613.83,0.00022465,2]
[314173831,1708043445020,-2598.57,0.00022465,2]
[314173832,1708043445029,-500.0,0.00022465,2]
[314173833,1708043445105,-562.7958494,0.00022465,2]
[314173834,1708043445114,-1842.61,0.00022465,2]
[314173835,1708043445124,-500.0,0.00022465,2]
[314173836,1708043445134,-1000.0,0.00022465,2]
[314173837,1708043445144,-500.0,0.00022465,2]
[314173838,1708043445154,-2457.25,0.00022465,2]
[314173839,1708043445164,-500.0,0.00022465,2]
[314173840,1708043445174,-1267.88,0.00022465,2]
[314173841,1708043445183,-500.0,0.00022465,2]
[314173842,1708043445192,-368.870193,0.00022465,2]
[314173843,1708043445201,-500.0,0.00022465,2]
[314173844,1708043445211,-368.870193,0.00022465,2]
[314173845,1708043445220,-6744.19,0.00022465,2]
[314173846,1708043445229,-2838.02,0.00022465,2]
[314173847,1708043445238,-285.790575,0.00022465,2]
[314173848,1708043445248,-1179.09,0.00022465,2]
[314173849,1708043445258,-285.790575,0.00022465,2]
[314173850,1708043445271,-765.96,0.00022465,2]
[314173851,1708043445283,-15049.85,0.00022465,2]
[314173852,1708043445292,-1207.54,0.00022465,2]
[314173853,1708043445301,-806.72,0.00022465,2]
[314173854,1708043445310,-500.0,0.00022465,2]
[314173855,1708043445319,-2485.29,0.00022465,2]
[314173856,1708043445329,-14273.82,0.00022465,2]
[314173857,1708043445338,-13301.26,0.00022465,2]
[314173858,1708043445347,-500.0,0.00022465,2]
[314173859,1708043445357,-500.0,0.00022465,2]
[314173860,1708043445366,-5635.35,0.00022465,2]
[314173861,1708043445376,-2100.89,0.00022465,2]
[314173862,1708043445385,-779.41,0.00022465,2]
[314173863,1708043445394,-500.0,0.00022465,2]
[314173864,1708043445404,-500.0,0.00022465,2]
[314173865,1708043445414,-13954.30607184,0.00022465,2]
[314173928,1708044637972,-636.0388561,0.00020365,2]
[314173930,1708044637982,-168.809424,0.00020562,2]
[314173932,1708044637991,-169.15687,0.00021542,2]
[314173934,1708044638000,-5282.99017836,0.00021716,2]
[314173936,1708044638009,-241.30245602,0.00021717,2]
[314173938,1708044638018,-9692.80068967,0.00021816,2]
[314173940,1708044638030,-1950.5936082,0.00021816,2]
[314173943,1708044638042,-6564.43834423,0.00021816,2]
[314173972,1708044641345,-779.04953872,0.00021816,2]
[314173973,1708044641358,-5913.11781918,0.00021816,2]
[314173974,1708044641367,-498.08838858,0.00021817,2]
[314173975,1708044641381,-498.08838858,0.00021886,2]
[314173976,1708044641390,-8481.88,0.00021906,3]
[314173977,1708044641399,-442.90461517,0.00021916,2]
[314173978,1708044641411,-1323.35292258,0.00021916,2]
[314173979,1708044641422,-500.0,0.00021916,2]
[314173980,1708044641431,-500.0,0.00021916,2]
[314173981,1708044641441,-168.77822607,0.00021916,2]
[314173982,1708044641450,-605.4934676,0.00021916,2]
[314173995,1708044645955,-6083.14982277,0.00021906,3]
[314174006,1708045166107,169.15687,0.00019178,2]
[314174007,1708045328974,24900.0,0.00018997,2]
[314174008,1708045459674,232.67510006,0.00018902,2]
[314174009,1708045552450,958.1154259,0.00019149,2]
[314174020,1708045803396,24900.0,0.00018946,2]
[314174087,1708045833495,-1270.77533531,0.00019789,2]
[314174088,1708045833508,-4012.21484305,0.00019789,2]
[314174089,1708045833517,-1689.67097328,0.0001979,2]
[314174090,1708045833526,-15340.98621148,0.00019792,2]
[314174091,1708045833536,-474.29970029,0.00019806,2]
[314174092,1708045833545,-1003.64702236,0.00019989,2]
[314174093,1708045833554,-7340.85,0.0001999,3]
[314174094,1708045833563,-49482.93782658,0.0002,2]
[314174095,1708045833575,-1303.28005346,0.0002,2]
[314174096,1708045833584,-200.0,0.00020187,2]
[314174097,1708045833594,-200.0,0.00020187,2]
[314174098,1708045833603,-233.93845851,0.00021,2]
[314174099,1708045833612,-746.81998043,0.00021,2]
[314174100,1708045833624,-462.228,0.00021,2]
[314174135,1708045838269,-405.55201515,0.00021,2]
[314174137,1708045838280,-1203.66111718,0.00021,2]
[314174139,1708045838289,-562.00019844,0.00021,2]